[Event "*** Titled Tuesday Blitz"]
[Site "Chess.com"]
[Date "2020.04.07"]
[Round "2"]
[White "Jenia84"]
[Black "Atanejhad"]
[Result "1/2-1/2"]
[WhiteElo "2301"]
[BlackElo "2523"]
[TimeControl "180+1"]
[EndTime "13:19:38 PDT"]
[Termination "Game drawn by agreement"]

1. Nf3 {[%clk 0:02:55.1]} 1... c5 {[%clk 0:02:46.2]} 2. g3 {[%clk 0:02:51.7]}
2... Nc6 {[%clk 0:02:46.2]} 3. Bg2 {[%clk 0:02:52.1]} 3... g6 {[%clk 0:02:44.9]}
4. O-O {[%clk 0:02:50.2]} 4... Bg7 {[%clk 0:02:45.2]} 5. c4 {[%clk 0:02:49.6]}
5... Nf6 {[%clk 0:02:41.3]} 6. Nc3 {[%clk 0:02:49.8]} 6... O-O {[%clk
0:02:41.1]} 7. e4 {[%clk 0:02:49.6]} 7... d6 {[%clk 0:02:40.2]} 8. h3 {[%clk
0:02:46.3]} 8... a6 {[%clk 0:02:13]} 9. d3 {[%clk 0:02:39]} 9... Rb8 {[%clk
0:02:10.6]} 10. Be3 {[%clk 0:02:26]} 10... b5 {[%clk 0:02:07.9]} 11. cxb5 {[%clk
0:02:14]} 11... axb5 {[%clk 0:02:08.8]} 12. e5 {[%clk 0:02:13.2]} 12... Nd7
{[%clk 0:01:56.2]} 13. exd6 {[%clk 0:02:11.2]} 13... exd6 {[%clk 0:01:56.7]} 14.
Bf4 {[%clk 0:02:02.8]} 14... b4 {[%clk 0:01:42.4]} 15. Na4 {[%clk 0:01:46.6]}
15... Nce5 {[%clk 0:01:38.6]} 16. Nxe5 {[%clk 0:01:39.1]} 16... Nxe5 {[%clk
0:01:39.5]} 17. Re1 {[%clk 0:01:32.7]} 17... Ba6 {[%clk 0:01:35.9]} 18. Nxc5
{[%clk 0:01:24.6]} 18... dxc5 {[%clk 0:01:32.2]} 19. Bxe5 {[%clk 0:01:24.7]}
19... Bxe5 {[%clk 0:01:30.1]} 20. Rxe5 {[%clk 0:01:23.4]} 20... Qxd3 {[%clk
0:01:30.6]} 21. Qxd3 {[%clk 0:01:22.5]} 21... Bxd3 {[%clk 0:01:31.5]} 22. Rxc5
{[%clk 0:01:22.5]} 22... b3 {[%clk 0:01:25.5]} 23. axb3 {[%clk 0:01:19.2]} 23...
Rxb3 {[%clk 0:01:25.2]} 24. Rc3 {[%clk 0:01:19.6]} 24... Rfb8 {[%clk 0:01:20.2]}
25. Ra8 {[%clk 0:01:11.9]} 25... Rxa8 {[%clk 0:01:07.5]} 26. Bxa8 {[%clk
0:01:08.7]} 26... Rxc3 {[%clk 0:00:55.5]} 27. bxc3 {[%clk 0:01:07.5]} 27... Bc4
{[%clk 0:00:55.9]} 28. f4 {[%clk 0:01:06.3]} 28... f6 {[%clk 0:00:55.3]} 29. Kf2
{[%clk 0:01:06.2]} 29... Kf7 {[%clk 0:00:55.7]} 30. Ke3 {[%clk 0:01:06.2]} 30...
Ke6 {[%clk 0:00:56]} 31. Kd4 {[%clk 0:01:06.2]} 31... Ba2 {[%clk 0:00:54.9]} 32.
Kc5 {[%clk 0:01:03]} 32... g5 {[%clk 0:00:50.9]} 33. fxg5 {[%clk 0:00:46.4]}
33... fxg5 {[%clk 0:00:49.9]} 34. c4 {[%clk 0:00:34.1]} 34... Ke5 {[%clk
0:00:49.4]} 35. Bd5 {[%clk 0:00:32]} 35... h5 {[%clk 0:00:47.7]} 36. Kb4 {[%clk
0:00:25.6]} 36... h4 {[%clk 0:00:45.3]} 37. gxh4 {[%clk 0:00:19.9]} 37... gxh4
{[%clk 0:00:46.2]} 38. Ka3 {[%clk 0:00:17.8]} 38... Bb1 {[%clk 0:00:41.3]} 39.
Kb2 {[%clk 0:00:17.2]} 39... Bf5 {[%clk 0:00:40.9]} 40. Bg2 {[%clk 0:00:16.1]}
40... Kd4 {[%clk 0:00:41.1]} 41. Kb3 {[%clk 0:00:16.2]} 41... Be6 {[%clk
0:00:41]} 42. Bf1 {[%clk 0:00:15]} 42... Kc5 {[%clk 0:00:41.4]} 43. Kc3 {[%clk
0:00:15.1]} 43... Bf5 {[%clk 0:00:41.1]} 44. Kd2 {[%clk 0:00:14.6]} 44... Kd4
{[%clk 0:00:40.5]} 45. Ke1 {[%clk 0:00:13.8]} 45... Be6 {[%clk 0:00:33.4]} 46.
Kf2 {[%clk 0:00:13.9]} 46... Bd7 {[%clk 0:00:32.7]} 47. Kf3 {[%clk 0:00:13.9]}
47... Be6 {[%clk 0:00:20.4]} 48. Kf4 {[%clk 0:00:14]} 48... Bxc4 {[%clk
0:00:19.2]} 49. Bxc4 {[%clk 0:00:13.3]} 49... Kxc4 {[%clk 0:00:20.1]} 50. Kg5
{[%clk 0:00:13.6]} 50... Kd5 {[%clk 0:00:21]} 51. Kxh4 {[%clk 0:00:14.1]} 51...
Ke6 {[%clk 0:00:21.9]} 52. Kg5 {[%clk 0:00:14.7]} 52... Kf7 {[%clk 0:00:22.6]}
53. Kh6 {[%clk 0:00:15.2]} 53... Kg8 {[%clk 0:00:23.2]} 54. h4 {[%clk
0:00:15.7]} 54... Kh8 {[%clk 0:00:24.1]} 55. Kg6 {[%clk 0:00:15.5]} 1/2-1/2

[Event "*** Titled Tuesday Blitz"]
[Site "Chess.com"]
[Date "2020.04.07"]
[Round "2"]
[White "JulAnt"]
[Black "letantha"]
[Result "1-0"]
[WhiteElo "2423"]
[BlackElo "2127"]
[TimeControl "180+1"]
[EndTime "13:19:39 PDT"]
[Termination "JulAnt won by resignation"]

1. e4 {[%clk 0:03:00.9]} 1... c5 {[%clk 0:02:58.7]} 2. Nf3 {[%clk 0:03:01]} 2...
g6 {[%clk 0:02:58.7]} 3. d4 {[%clk 0:02:59.7]} 3... cxd4 {[%clk 0:02:58.6]} 4.
Qxd4 {[%clk 0:02:59.9]} 4... Nf6 {[%clk 0:02:58]} 5. Nc3 {[%clk 0:03:00]} 5...
Nc6 {[%clk 0:02:58.1]} 6. Qe3 {[%clk 0:03:00.3]} 6... Bg7 {[%clk 0:02:57.4]} 7.
Bd2 {[%clk 0:03:00.5]} 7... O-O {[%clk 0:02:54.4]} 8. h3 {[%clk 0:03:00.4]} 8...
d6 {[%clk 0:02:53.1]} 9. O-O-O {[%clk 0:03:00.6]} 9... a6 {[%clk 0:02:49.3]} 10.
Kb1 {[%clk 0:03:00.6]} 10... b5 {[%clk 0:02:49.2]} 11. Bd3 {[%clk 0:02:57.8]}
11... Bb7 {[%clk 0:02:44.1]} 12. h4 {[%clk 0:02:38.7]} 12... Ng4 {[%clk
0:02:34.6]} 13. Qe2 {[%clk 0:02:38.7]} 13... h5 {[%clk 0:02:33.5]} 14. Ng5
{[%clk 0:02:32.6]} 14... e6 {[%clk 0:02:25.3]} 15. f3 {[%clk 0:02:32.6]} 15...
Nge5 {[%clk 0:02:24.9]} 16. Rdg1 {[%clk 0:02:23.6]} 16... b4 {[%clk 0:02:17.2]}
17. Nd1 {[%clk 0:02:23.7]} 17... Nxd3 {[%clk 0:02:02]} 18. cxd3 {[%clk
0:02:16.6]} 18... Nd4 {[%clk 0:01:58]} 19. Qf2 {[%clk 0:02:15.9]} 19... b3
{[%clk 0:01:54.1]} 20. a3 {[%clk 0:02:09.9]} 20... Rc8 {[%clk 0:01:51.5]} 21.
Bc3 {[%clk 0:02:07]} 21... Nb5 {[%clk 0:01:18.5]} 22. Bxg7 {[%clk 0:01:51.4]}
22... Kxg7 {[%clk 0:01:19.4]} 23. Ne3 {[%clk 0:01:47.4]} 23... Nd4 {[%clk
0:01:12.7]} 24. g4 {[%clk 0:01:43.3]} 24... Rc2 {[%clk 0:01:08.4]} 25. Nxc2
{[%clk 0:01:15.1]} 25... bxc2+ {[%clk 0:01:09.3]} 26. Ka1 {[%clk 0:01:09.3]}
26... Qb6 {[%clk 0:00:57.9]} 27. Qg3 {[%clk 0:00:38.6]} 27... Rc8 {[%clk
0:00:35.5]} 28. gxh5 {[%clk 0:00:25]} 28... Nb3+ {[%clk 0:00:24.2]} 29. Ka2
{[%clk 0:00:24.9]} 29... c1=Q {[%clk 0:00:23.3]} 30. Rxc1 {[%clk 0:00:24.7]}
30... Nxc1+ {[%clk 0:00:21.4]} 31. Rxc1 {[%clk 0:00:15.4]} 31... Rxc1 {[%clk
0:00:20.6]} 32. Qf4 {[%clk 0:00:13.8]} 32... Rc7 {[%clk 0:00:11.3]} 33. h6+
{[%clk 0:00:13.6]} 33... Kf8 {[%clk 0:00:09.3]} 34. Qf6 {[%clk 0:00:09.2]} 34...
Ke8 {[%clk 0:00:05.2]} 35. h7 {[%clk 0:00:08.7]} 35... Kd7 {[%clk 0:00:05.5]}
36. h8=Q {[%clk 0:00:08.8]} 36... Kc6 {[%clk 0:00:05.5]} 37. Qc3+ {[%clk
0:00:08]} 37... Qc5 {[%clk 0:00:05.6]} 38. Qxc5+ {[%clk 0:00:08]} 38... dxc5
{[%clk 0:00:06.1]} 39. Qe5 {[%clk 0:00:07.9]} 39... Kb6 {[%clk 0:00:05.8]} 40.
Nxf7 {[%clk 0:00:07.8]} 40... Bc8 {[%clk 0:00:03.8]} 41. Nd6 {[%clk 0:00:07.5]}
41... Rc6 {[%clk 0:00:04.3]} 42. Nxc8+ {[%clk 0:00:07.4]} 42... Rxc8 {[%clk
0:00:05.2]} 43. Qxe6+ {[%clk 0:00:07.8]} 43... Rc6 {[%clk 0:00:06.1]} 44. Qe5
{[%clk 0:00:07.5]} 44... a5 {[%clk 0:00:05.6]} 45. f4 {[%clk 0:00:07.5]} 45...
a4 {[%clk 0:00:04.8]} 46. f5 {[%clk 0:00:07.8]} 46... gxf5 {[%clk 0:00:05]} 47.
exf5 {[%clk 0:00:08.2]} 47... c4 {[%clk 0:00:05.6]} 48. dxc4 {[%clk 0:00:08.2]}
48... Rxc4 {[%clk 0:00:05.6]} 49. f6 {[%clk 0:00:08.3]} 49... Re4 {[%clk
0:00:05.5]} 50. Qxe4 {[%clk 0:00:07.7]} 1-0

[Event "*** Titled Tuesday Blitz"]
[Site "Chess.com"]
[Date "2020.04.07"]
[Round "2"]
[White "violetflower04"]
[Black "SoltaniciR"]
[Result "0-1"]
[WhiteElo "2206"]
[BlackElo "2649"]
[TimeControl "180+1"]
[EndTime "13:19:40 PDT"]
[Termination "SoltaniciR won by resignation"]

1. e4 {[%clk 0:03:00.9]} 1... c5 {[%clk 0:02:59.6]} 2. Nf3 {[%clk 0:03:00.6]}
2... d6 {[%clk 0:02:59.7]} 3. d4 {[%clk 0:03:00.9]} 3... cxd4 {[%clk 0:02:59.9]}
4. Nxd4 {[%clk 0:03:01.8]} 4... Nf6 {[%clk 0:02:57.2]} 5. Nc3 {[%clk 0:03:01.8]}
5... a6 {[%clk 0:02:57.7]} 6. f3 {[%clk 0:03:00.8]} 6... e6 {[%clk 0:02:57.2]}
7. Be3 {[%clk 0:02:58.2]} 7... b5 {[%clk 0:02:57.6]} 8. Qd2 {[%clk 0:02:52.3]}
8... Nbd7 {[%clk 0:02:57.9]} 9. O-O-O {[%clk 0:02:47.1]} 9... Nb6 {[%clk
0:02:56.5]} 10. a3 {[%clk 0:02:27.4]} 10... h5 {[%clk 0:02:51.6]} 11. Be2 {[%clk
0:02:05.7]} 11... Bb7 {[%clk 0:02:50.4]} 12. Rhf1 {[%clk 0:01:51.5]} 12... Rc8
{[%clk 0:02:49.6]} 13. Bd3 {[%clk 0:01:47.7]} 13... Qc7 {[%clk 0:02:36.4]} 14.
f4 {[%clk 0:01:44.5]} 14... Be7 {[%clk 0:02:14.6]} 15. Qf2 {[%clk 0:01:35.6]}
15... Nc4 {[%clk 0:02:05.7]} 16. Bxc4 {[%clk 0:01:22.6]} 16... Qxc4 {[%clk
0:02:06.6]} 17. e5 {[%clk 0:01:22]} 17... Ng4 {[%clk 0:02:00.9]} 18. Qe1 {[%clk
0:01:03.2]} 18... dxe5 {[%clk 0:01:48.3]} 19. fxe5 {[%clk 0:00:54.9]} 19... Bxa3
{[%clk 0:01:47.7]} 20. bxa3 {[%clk 0:00:32.4]} 20... Qxc3 {[%clk 0:01:47.5]} 21.
Qxc3 {[%clk 0:00:30.5]} 21... Rxc3 {[%clk 0:01:48.4]} 22. Bd2 {[%clk 0:00:30.5]}
22... Rc4 {[%clk 0:01:43.4]} 23. Nb3 {[%clk 0:00:28.4]} 23... Nxe5 {[%clk
0:01:40.8]} 24. Na5 {[%clk 0:00:26.5]} 24... Bxg2 {[%clk 0:01:24.8]} 25. Nxc4
{[%clk 0:00:22.6]} 25... Nxc4 {[%clk 0:01:22.2]} 26. Rg1 {[%clk 0:00:21.8]}
26... Be4 {[%clk 0:01:15.5]} 27. Bb4 {[%clk 0:00:18.6]} 27... g6 {[%clk
0:01:01.2]} 28. Rd4 {[%clk 0:00:17.5]} 28... Bd5 {[%clk 0:00:58.2]} 29. Rf4
{[%clk 0:00:15.9]} 29... e5 {[%clk 0:00:40.9]} 30. Rf6 {[%clk 0:00:15.4]} 30...
Be6 {[%clk 0:00:41]} 31. Rd1 {[%clk 0:00:14.7]} 31... h4 {[%clk 0:00:38.5]} 32.
Rf2 {[%clk 0:00:13.6]} 32... Rh5 {[%clk 0:00:36.2]} 33. Bc5 {[%clk 0:00:12.6]}
33... f5 {[%clk 0:00:24.6]} 34. Rf3 {[%clk 0:00:12.4]} 34... e4 {[%clk
0:00:24.3]} 35. Rf4 {[%clk 0:00:11.2]} 35... g5 {[%clk 0:00:23.4]} 36. Rff1
{[%clk 0:00:10.8]} 36... f4 {[%clk 0:00:23.4]} 37. Rg1 {[%clk 0:00:09.7]} 37...
e3 {[%clk 0:00:23]} 38. Rde1 {[%clk 0:00:09.1]} 38... g4 {[%clk 0:00:22.8]} 39.
h3 {[%clk 0:00:08.5]} 39... Rxc5 {[%clk 0:00:22]} 40. hxg4 {[%clk 0:00:08.5]}
40... Rg5 {[%clk 0:00:22]} 41. Rg2 {[%clk 0:00:07.3]} 41... Rxg4 {[%clk
0:00:21.5]} 42. Rxg4 {[%clk 0:00:06.7]} 42... Bxg4 {[%clk 0:00:22.4]} 43. Rg1
{[%clk 0:00:06.1]} 43... f3 {[%clk 0:00:19.2]} 44. Rg3 {[%clk 0:00:05.6]} 44...
hxg3 {[%clk 0:00:18.4]} 0-1

[Event "*** Titled Tuesday Blitz"]
[Site "Chess.com"]
[Date "2020.04.07"]
[Round "2"]
[White "nomessi"]
[Black "Stouuf"]
[Result "1-0"]
[WhiteElo "2313"]
[BlackElo "2518"]
[TimeControl "180+1"]
[EndTime "13:19:40 PDT"]
[Termination "nomessi won by checkmate"]

1. e4 {[%clk 0:03:00.8]} 1... c5 {[%clk 0:02:54.5]} 2. Nf3 {[%clk 0:03:00.5]}
2... Nc6 {[%clk 0:02:54.9]} 3. d4 {[%clk 0:03:00.6]} 3... cxd4 {[%clk
0:02:55.8]} 4. Nxd4 {[%clk 0:03:00.7]} 4... g6 {[%clk 0:02:56.3]} 5. Nc3 {[%clk
0:03:00.1]} 5... Bg7 {[%clk 0:02:55]} 6. Be3 {[%clk 0:03:00.2]} 6... Nf6 {[%clk
0:02:55.5]} 7. Be2 {[%clk 0:03:00.1]} 7... O-O {[%clk 0:02:56.1]} 8. Nb3 {[%clk
0:03:00.1]} 8... d6 {[%clk 0:02:56]} 9. g4 {[%clk 0:03:00]} 9... Na5 {[%clk
0:02:49.9]} 10. g5 {[%clk 0:02:59.3]} 10... Nd7 {[%clk 0:02:48.7]} 11. h4 {[%clk
0:02:58.7]} 11... Ne5 {[%clk 0:02:47.2]} 12. Nxa5 {[%clk 0:02:56.7]} 12... Qxa5
{[%clk 0:02:48.1]} 13. f4 {[%clk 0:02:55.4]} 13... Nc4 {[%clk 0:02:41.2]} 14.
Bxc4 {[%clk 0:02:51.3]} 14... Bxc3+ {[%clk 0:02:41.1]} 15. bxc3 {[%clk
0:02:42.9]} 15... Qxc3+ {[%clk 0:02:42]} 16. Kf2 {[%clk 0:02:42.8]} 16... Qxc4
{[%clk 0:02:42.2]} 17. Qd3 {[%clk 0:02:42.3]} 17... Qxd3 {[%clk 0:02:41.7]} 18.
cxd3 {[%clk 0:02:42.2]} 18... Be6 {[%clk 0:02:41.3]} 19. h5 {[%clk 0:02:37.2]}
19... Rfc8 {[%clk 0:02:35.1]} 20. hxg6 {[%clk 0:02:32.6]} 20... fxg6 {[%clk
0:02:36]} 21. Rh6 {[%clk 0:02:25.3]} 21... Rc2+ {[%clk 0:02:26.9]} 22. Kf3
{[%clk 0:02:24.1]} 22... Rf8 {[%clk 0:02:18.7]} 23. Rah1 {[%clk 0:02:20.2]}
23... Rf7 {[%clk 0:02:05.9]} 24. Bd4 {[%clk 0:02:19.8]} 24... Bxa2 {[%clk
0:01:58.3]} 25. Rxg6+ {[%clk 0:02:15.7]} 25... Kf8 {[%clk 0:01:58.7]} 26. Rgh6
{[%clk 0:02:15.5]} 26... e5 {[%clk 0:01:58.3]} 27. Be3 {[%clk 0:02:05.2]} 27...
exf4 {[%clk 0:01:55.1]} 28. Bd4 {[%clk 0:02:02.7]} 28... Ke7 {[%clk 0:01:45.4]}
29. Rxh7 {[%clk 0:01:59.8]} 29... Rxh7 {[%clk 0:01:23]} 30. Rxh7+ {[%clk
0:01:58.9]} 30... Ke6 {[%clk 0:01:23.5]} 31. Rxb7 {[%clk 0:01:58.1]} 31... Rd2
{[%clk 0:01:14]} 32. g6 {[%clk 0:01:47.2]} 32... Rxd3+ {[%clk 0:01:07.4]} 33.
Kxf4 {[%clk 0:01:44.9]} 33... Rxd4 {[%clk 0:01:07.7]} 34. g7 {[%clk 0:01:43.3]}
34... Kf6 {[%clk 0:01:07.6]} 35. Rxa7 {[%clk 0:01:41.8]} 35... Bg8 {[%clk
0:01:06.3]} 36. Rd7 {[%clk 0:01:38.7]} 36... Ke6 {[%clk 0:00:41.9]} 37. Ra7
{[%clk 0:01:35.8]} 37... Bh7 {[%clk 0:00:39.7]} 38. Kg5 {[%clk 0:01:28]} 38...
Rxe4 {[%clk 0:00:36.4]} 39. Ra8 {[%clk 0:01:25.7]} 39... Kf7 {[%clk 0:00:28.2]}
40. Ra7+ {[%clk 0:01:19.6]} 40... Re7 {[%clk 0:00:28.4]} 41. Ra6 {[%clk
0:01:13.9]} 41... Rd7 {[%clk 0:00:24.5]} 42. Kh6 {[%clk 0:01:13.8]} 42... Bg8
{[%clk 0:00:11.7]} 43. Ra8 {[%clk 0:01:11]} 43... d5 {[%clk 0:00:03.3]} 44. Rf8+
{[%clk 0:01:09.7]} 44... Ke7 {[%clk 0:00:03.6]} 45. Rxg8 {[%clk 0:01:09.2]}
45... Rd6+ {[%clk 0:00:03.9]} 46. Kh7 {[%clk 0:01:09]} 46... d4 {[%clk
0:00:04.1]} 47. Ra8 {[%clk 0:01:06.8]} 47... d3 {[%clk 0:00:01.6]} 48. g8=Q
{[%clk 0:01:05.4]} 48... d2 {[%clk 0:00:02.5]} 49. Qf8+ {[%clk 0:01:03.1]} 49...
Ke6 {[%clk 0:00:02.7]} 50. Re8+ {[%clk 0:01:00.6]} 50... Kd5 {[%clk 0:00:02.9]}
51. Qf5+ {[%clk 0:01:00.2]} 51... Kc4 {[%clk 0:00:02.6]} 52. Rc8+ {[%clk
0:00:59.8]} 52... Kd4 {[%clk 0:00:02.4]} 53. Qf4+ {[%clk 0:00:58.5]} 53... Kd5
{[%clk 0:00:02.3]} 54. Qxd2+ {[%clk 0:00:58]} 54... Ke6 {[%clk 0:00:02.4]} 55.
Qe3+ {[%clk 0:00:57.7]} 55... Kd7 {[%clk 0:00:02.8]} 56. Qe8# {[%clk 0:00:57.3]}
1-0

[Event "*** Titled Tuesday Blitz"]
[Site "Chess.com"]
[Date "2020.04.07"]
[Round "2"]
[White "jeaston1"]
[Black "esteban062000"]
[Result "1-0"]
[WhiteElo "2442"]
[BlackElo "2149"]
[TimeControl "180+1"]
[EndTime "13:19:41 PDT"]
[Termination "jeaston1 won by resignation"]

1. d4 {[%clk 0:03:00.9]} 1... Nf6 {[%clk 0:02:59.6]} 2. c4 {[%clk 0:03:01.2]}
2... e6 {[%clk 0:02:59.7]} 3. Nc3 {[%clk 0:03:01.5]} 3... Bb4 {[%clk 0:02:59.6]}
4. Qc2 {[%clk 0:03:01.9]} 4... O-O {[%clk 0:02:59.3]} 5. Nf3 {[%clk 0:03:02.2]}
5... c5 {[%clk 0:02:57.5]} 6. dxc5 {[%clk 0:02:57.9]} 6... Bxc5 {[%clk 0:02:55]}
7. Bg5 {[%clk 0:02:53.5]} 7... h6 {[%clk 0:02:51]} 8. Bxf6 {[%clk 0:02:53.1]}
8... Qxf6 {[%clk 0:02:50]} 9. e3 {[%clk 0:02:54]} 9... Bb4 {[%clk 0:02:45.4]}
10. Nd4 {[%clk 0:02:46.5]} 10... Nc6 {[%clk 0:02:39]} 11. Rd1 {[%clk 0:02:42.7]}
11... b6 {[%clk 0:02:24.2]} 12. Nxc6 {[%clk 0:02:33.1]} 12... dxc6 {[%clk
0:02:23.1]} 13. Be2 {[%clk 0:02:24.8]} 13... Bb7 {[%clk 0:02:05.5]} 14. Bf3
{[%clk 0:02:22.9]} 14... Rad8 {[%clk 0:01:54.5]} 15. O-O {[%clk 0:02:22.3]}
15... Bxc3 {[%clk 0:01:54]} 16. bxc3 {[%clk 0:02:21.6]} 16... Qe7 {[%clk
0:01:47.7]} 17. Qa4 {[%clk 0:02:10.2]} 17... Ba8 {[%clk 0:01:03.8]} 18. Bxc6
{[%clk 0:02:07.4]} 18... Bxc6 {[%clk 0:00:38.5]} 19. Qxc6 {[%clk 0:02:05.9]}
19... Rc8 {[%clk 0:00:38.6]} 20. Qa4 {[%clk 0:02:05.5]} 20... Rc7 {[%clk
0:00:34.8]} 21. Rd4 {[%clk 0:02:01.8]} 21... Rfc8 {[%clk 0:00:20.4]} 22. Rfd1
{[%clk 0:01:25.4]} 22... Qf6 {[%clk 0:00:20.7]} 23. h3 {[%clk 0:01:15.7]} 23...
e5 {[%clk 0:00:19.4]} 24. Rd6 {[%clk 0:01:15.2]} 24... Qf5 {[%clk 0:00:18.2]}
25. Rd8+ {[%clk 0:01:04.6]} 25... Kh7 {[%clk 0:00:18]} 26. Qe8 {[%clk
0:00:50.2]} 26... Rxc4 {[%clk 0:00:08.1]} 27. Qg8+ {[%clk 0:00:32.9]} 27... Kg6
{[%clk 0:00:07.9]} 28. R1d6+ {[%clk 0:00:28.8]} 28... f6 {[%clk 0:00:05.8]} 29.
Qe8+ {[%clk 0:00:19.1]} 29... Kg5 {[%clk 0:00:05.8]} 30. Qf7 {[%clk 0:00:11.1]}
30... Qb1+ {[%clk 0:00:06.7]} 31. Kh2 {[%clk 0:00:10.5]} 31... Qg6 {[%clk
0:00:07.6]} 32. h4+ {[%clk 0:00:08.2]} 32... Kh5 {[%clk 0:00:07.3]} 33. g4+
{[%clk 0:00:05.5]} 33... Rxg4 {[%clk 0:00:07.4]} 34. Qxg6+ {[%clk 0:00:06.4]}
34... Kxg6 {[%clk 0:00:08.2]} 35. h5+ {[%clk 0:00:06]} 35... Kxh5 {[%clk
0:00:08]} 36. Rxc8 {[%clk 0:00:06.5]} 36... Rh4+ {[%clk 0:00:08.9]} 37. Kg2
{[%clk 0:00:06.9]} 37... Rg4+ {[%clk 0:00:09.8]} 38. Kf1 {[%clk 0:00:07.3]}
38... Kg6 {[%clk 0:00:10.2]} 39. Ke2 {[%clk 0:00:08.2]} 39... Rg5 {[%clk
0:00:11.1]} 40. Rdc6 {[%clk 0:00:08.5]} 40... Rf5 {[%clk 0:00:12]} 41. R8c7
{[%clk 0:00:08.6]} 41... Rxf2+ {[%clk 0:00:12.9]} 42. Kxf2 {[%clk 0:00:07.9]}
42... h5 {[%clk 0:00:13.2]} 43. Kg2 {[%clk 0:00:08.8]} 43... h4 {[%clk
0:00:14.1]} 44. Rd6 {[%clk 0:00:09]} 44... Kg5 {[%clk 0:00:15]} 45. Kh3 {[%clk
0:00:09.4]} 45... g6 {[%clk 0:00:15.9]} 46. Rcc6 {[%clk 0:00:08.7]} 46... f5
{[%clk 0:00:16.8]} 47. Rxg6+ {[%clk 0:00:09]} 47... Kh5 {[%clk 0:00:17.7]} 48.
Rcf6 {[%clk 0:00:08.7]} 48... f4 {[%clk 0:00:17.5]} 49. exf4 {[%clk 0:00:08.8]}
49... exf4 {[%clk 0:00:17.6]} 50. Rh6+ {[%clk 0:00:09.3]} 50... Kg5 {[%clk
0:00:17.9]} 51. Rhg6+ {[%clk 0:00:10.2]} 51... Kh5 {[%clk 0:00:18.1]} 52. Rxf4
{[%clk 0:00:11.1]} 52... Kxg6 {[%clk 0:00:18.1]} 53. Rxh4 {[%clk 0:00:10]} 1-0

[Event "*** Titled Tuesday Blitz"]
[Site "Chess.com"]
[Date "2020.04.07"]
[Round "2"]
[White "ecwinslow"]
[Black "patrisiii123"]
[Result "1-0"]
[WhiteElo "2169"]
[BlackElo "2400"]
[TimeControl "180+1"]
[EndTime "13:19:41 PDT"]
[Termination "ecwinslow won by checkmate"]

1. e4 {[%clk 0:03:00.9]} 1... e5 {[%clk 0:02:49.4]} 2. Nf3 {[%clk 0:02:59.6]}
2... Nc6 {[%clk 0:02:48.9]} 3. d4 {[%clk 0:02:57.7]} 3... exd4 {[%clk
0:02:48.6]} 4. Nxd4 {[%clk 0:02:57]} 4... Nf6 {[%clk 0:02:48]} 5. Nxc6 {[%clk
0:02:56]} 5... bxc6 {[%clk 0:02:48.9]} 6. e5 {[%clk 0:02:56]} 6... Qe7 {[%clk
0:02:48.8]} 7. Qe2 {[%clk 0:02:54.1]} 7... Nd5 {[%clk 0:02:48.9]} 8. c4 {[%clk
0:02:53.5]} 8... Ba6 {[%clk 0:02:48.6]} 9. Nd2 {[%clk 0:02:53.3]} 9... g6 {[%clk
0:02:48.1]} 10. Nf3 {[%clk 0:02:51.6]} 10... Bg7 {[%clk 0:02:47]} 11. Bg5 {[%clk
0:02:43.9]} 11... Qb4+ {[%clk 0:02:38.5]} 12. Qd2 {[%clk 0:02:41.7]} 12... Qxd2+
{[%clk 0:02:33.4]} 13. Bxd2 {[%clk 0:02:39.6]} 13... Nb6 {[%clk 0:02:31.6]} 14.
b3 {[%clk 0:02:38.7]} 14... O-O {[%clk 0:02:30.4]} 15. O-O-O {[%clk 0:02:38.3]}
15... Rfe8 {[%clk 0:02:29.3]} 16. Bf4 {[%clk 0:02:29.7]} 16... c5 {[%clk
0:02:11.2]} 17. h4 {[%clk 0:02:25.7]} 17... Bb7 {[%clk 0:02:11.2]} 18. Be2
{[%clk 0:02:01.6]} 18... a5 {[%clk 0:02:09.3]} 19. a4 {[%clk 0:01:56.3]} 19...
d6 {[%clk 0:02:01.5]} 20. h5 {[%clk 0:01:48.8]} 20... dxe5 {[%clk 0:01:48.9]}
21. Be3 {[%clk 0:01:47.3]} 21... e4 {[%clk 0:01:48.6]} 22. Ng5 {[%clk
0:01:34.6]} 22... f6 {[%clk 0:01:43.7]} 23. Nh3 {[%clk 0:01:19.1]} 23... Re5
{[%clk 0:01:39.9]} 24. hxg6 {[%clk 0:01:06.5]} 24... hxg6 {[%clk 0:01:38.6]} 25.
Nf4 {[%clk 0:01:06.4]} 25... Kf7 {[%clk 0:01:24]} 26. g4 {[%clk 0:01:06.3]}
26... Rh8 {[%clk 0:01:18]} 27. Rxh8 {[%clk 0:01:05]} 27... Bxh8 {[%clk
0:01:18.9]} 28. Rd8 {[%clk 0:01:04.1]} 28... Bg7 {[%clk 0:01:15.1]} 29. Rb8
{[%clk 0:00:36]} 29... Bc6 {[%clk 0:01:13.2]} 30. Rd8 {[%clk 0:00:29.9]} 30...
Bf8 {[%clk 0:01:09.6]} 31. Kc2 {[%clk 0:00:24.4]} 31... Be7 {[%clk 0:01:07.7]}
32. Rd1 {[%clk 0:00:21.4]} 32... Bd6 {[%clk 0:01:04.6]} 33. Nd5 {[%clk
0:00:19.8]} 33... Bxd5 {[%clk 0:01:03.4]} 34. cxd5 {[%clk 0:00:19.4]} 34... Kg7
{[%clk 0:01:01.6]} 35. Bc4 {[%clk 0:00:18.2]} 35... Nxc4 {[%clk 0:01:01.2]} 36.
bxc4 {[%clk 0:00:17.4]} 36... g5 {[%clk 0:01:01.9]} 37. Rb1 {[%clk 0:00:14.9]}
37... Re8 {[%clk 0:01:01.3]} 38. Rb5 {[%clk 0:00:14.5]} 38... Ra8 {[%clk
0:01:01.1]} 39. Bxc5 {[%clk 0:00:14.4]} 39... Bxc5 {[%clk 0:01:01]} 40. Rxc5
{[%clk 0:00:14.5]} 40... Ra7 {[%clk 0:01:01.7]} 41. Rb5 {[%clk 0:00:14.1]} 41...
Kf7 {[%clk 0:01:01.9]} 42. c5 {[%clk 0:00:13.7]} 42... Ke7 {[%clk 0:01:02.7]}
43. Rb8 {[%clk 0:00:13.4]} 43... Kd7 {[%clk 0:00:52.6]} 44. Kc3 {[%clk
0:00:13.2]} 44... c6 {[%clk 0:00:51.8]} 45. d6 {[%clk 0:00:12.5]} 45... Ke6
{[%clk 0:00:51.9]} 46. Kd4 {[%clk 0:00:11.6]} 46... Rh7 {[%clk 0:00:50.9]} 47.
Rc8 {[%clk 0:00:09.6]} 47... f5 {[%clk 0:00:49.2]} 48. gxf5+ {[%clk 0:00:08.7]}
48... Kxf5 {[%clk 0:00:50.1]} 49. Rxc6 {[%clk 0:00:08.4]} 49... Rh1 {[%clk
0:00:48.5]} 50. Rc8 {[%clk 0:00:07.7]} 50... Rd1+ {[%clk 0:00:48.2]} 51. Ke3
{[%clk 0:00:07.7]} 51... Ke5 {[%clk 0:00:48.5]} 52. Re8+ {[%clk 0:00:06.7]}
52... Kd5 {[%clk 0:00:48.8]} 53. d7 {[%clk 0:00:06.9]} 53... Rd3+ {[%clk
0:00:47.5]} 54. Ke2 {[%clk 0:00:06.3]} 54... Kxc5 {[%clk 0:00:47.7]} 55. d8=Q
{[%clk 0:00:05.7]} 55... Rxd8 {[%clk 0:00:47.7]} 56. Rxd8 {[%clk 0:00:06.3]}
56... Kb4 {[%clk 0:00:48.6]} 57. Ke3 {[%clk 0:00:06]} 57... Kxa4 {[%clk
0:00:49.5]} 58. Rb8 {[%clk 0:00:06]} 58... Ka3 {[%clk 0:00:49.7]} 59. Kxe4
{[%clk 0:00:06.6]} 59... a4 {[%clk 0:00:50.6]} 60. Kd3 {[%clk 0:00:06.9]} 60...
Ka2 {[%clk 0:00:51.5]} 61. Kc2 {[%clk 0:00:06.9]} 61... a3 {[%clk 0:00:52.3]}
62. Ra8 {[%clk 0:00:06.8]} 62... g4 {[%clk 0:00:52.4]} 63. Ra4 {[%clk
0:00:05.6]} 63... g3 {[%clk 0:00:49.8]} 64. fxg3 {[%clk 0:00:05.4]} 64... Ka1
{[%clk 0:00:34.7]} 65. Rxa3# {[%clk 0:00:06.3]} 1-0